fUSD/lending_fUSD_20251225
["ID","MTS","AMOUNT","RATE_DAILY","PERIOD"]
[399713827,1766631543586,-297.89324104,0.00012742,2]
[399713828,1766631546572,-250.0,0.00012689,2]
[399713829,1766631546602,-250.0,0.0001272,2]
[399713830,1766631546631,-902.10675896,0.00012742,2]
[399713831,1766631546660,-500.0,0.00012742,2]
[399713832,1766631546688,-616.96397547,0.00012742,2]
[399713833,1766631546715,-472.27290645,0.00012742,2]
[399713834,1766631546751,-500.0,0.00012742,2]
[399713835,1766631546791,-576.41002852,0.00012742,2]
[399713836,1766631546821,-503.42768977,0.00012742,2]
[399713837,1766631546851,-357.64728166,0.00012742,2]
[399713838,1766631546904,5144.27629745,0.00013908,4]
[399713839,1766631547109,-142.35271834,0.00012742,2]
[399713840,1766631549225,-500.0,0.00012742,2]
[399713841,1766631549256,-500.0,0.00012742,2]
[399713842,1766631549287,-500.0,0.00012742,2]
[399713843,1766631549317,-169.32530671,0.00012742,2]
[399713844,1766631549433,-6661.35938658,0.00012743,2]
[399713845,1766631599652,3240.0,0.00012366,2]
[399713846,1766631651970,-504.55202506,0.00012642,2]
[399713847,1766631654879,-172.36889812,0.00012642,2]
[399713848,1766631727080,-300.0,0.00012641,2]
[399713849,1766631727102,-24.38618329,0.00012642,2]
[399713850,1766631730119,-250.0,0.00012642,2]
[399713851,1766631732425,-248.69289353,0.00012642,2]
[399713852,1766631732451,-56.88605673,0.00012642,2]
[399713853,1766631734531,-220.07387993,0.00012642,2]
[399713854,1766631736605,-23.04006334,0.00012642,2]
[399713855,1766631736630,-222.83964036,0.00012642,2]
[399713856,1766631741799,-77.16035964,0.00012642,2]
[399713857,1766631741823,-117.83964036,0.00012642,2]
[399713858,1766631743227,-32.16035964,0.00012642,2]
[399713859,1766631743251,-141.81770878,0.00012642,2]
[399713860,1766631745218,-236.0134,0.00012642,2]
[399713861,1766631747244,-385.04791094,0.00012642,2]
[399713863,1766631805148,350.2804,0.00012543,2]
[399713864,1766631811482,9649.7296,0.00012543,2]
[399713865,1766631811506,10000.01,0.00012543,2]
[399713866,1766631811533,10000.01,0.00012543,2]
[399713867,1766631811556,10000.01,0.00012543,2]
[399713868,1766631811580,10000.01,0.00012543,2]
[399713869,1766631811603,10000.01,0.00012543,2]
[399713870,1766631811626,10000.01,0.00012543,2]
[399713871,1766631811649,2482.1078,0.00012543,2]
[399713872,1766631831023,2422.26,0.00012172,2]
[399713873,1766631866483,236.0434,0.00012543,2]
[399713874,1766631884412,999.0,0.0001221,3]
[399713875,1766631891016,500.0,0.00012542,2]
[399713876,1766631961374,4359.5988,0.00012543,2]
[399713877,1766631961397,10000.01,0.00012543,2]
[399713878,1766631961425,937.8057,0.00012543,2]
[399713879,1766632047288,952.0,0.000226,120]
[399713880,1766632049697,3640.08,0.00012149,2]
[399713881,1766632077344,150.0,0.00012132,2]
[399713882,1766632127863,443.83,0.00012109,2]
[399713883,1766632132730,2878.02116923,0.00012542,2]
[399713884,1766632178940,6528.15883077,0.00012066,2]
[399713885,1766632178964,5723.62116923,0.00012066,2]
[399713886,1766632211423,4276.38883077,0.00012542,2]
[399713887,1766632211454,10000.01,0.00012542,2]
[399713888,1766632211482,10000.01,0.00012542,2]
[399713889,1766632211512,10000.01,0.00012542,2]
[399713890,1766632211541,10000.01,0.00012542,2]
[399713891,1766632211570,10000.01,0.00012542,2]
[399713892,1766632211599,10000.01,0.00012542,2]
[399713893,1766632211627,10000.01,0.00012542,2]
[399713894,1766632211656,10000.01,0.00012542,2]
[399713895,1766632211684,10000.01,0.00012542,2]
[399713896,1766632224415,205.75,0.00012002,2]
[399713899,1766632231540,-10749.83539884,0.00012542,2]
[399713900,1766632231553,-2108.01942602,0.00012542,2]
[399713901,1766632231598,-883.80991651,0.00012542,2]
[399713902,1766632231610,-22722.09,0.00012542,2]
[399713903,1766632231621,-1165.66,0.00012542,2]
[399713904,1766632231633,-868.46461215,0.00012542,2]
[399713905,1766632231654,-1114.32355392,0.00012542,2]
[399713906,1766632231711,-2279.85668093,0.00012542,2]
[399713907,1766632231722,-485.76562377,0.00012542,2]
[399713908,1766632231734,-2369.38235258,0.00012542,2]
[399713909,1766632231745,-2649.89725442,0.00012542,2]
[399713910,1766632231757,-268.99999996,0.00012542,2]
[399713911,1766632231768,-3145.62502986,0.00012542,2]
[399713920,1766632233283,-2182.1243,0.00012542,2]
[399713921,1766632233521,-241.03614519,0.00012541,2]
[399713922,1766632233550,-501.31859887,0.00012541,2]
[399713923,1766632233585,-500.0,0.00012541,2]
[399713924,1766632233633,-500.0,0.00012541,2]
[399713925,1766632233663,-500.0,0.00012541,2]
[399713926,1766632233691,-500.0,0.00012541,2]
[399713927,1766632233731,-500.0,0.00012541,2]
[399713928,1766632233761,-500.0,0.00012541,2]
[399713929,1766632233965,-417.33749278,0.00012541,2]
[399713930,1766632234002,-500.0,0.00012541,2]
[399713931,1766632234034,-430.05731615,0.00012541,2]
[399713932,1766632234069,-500.0,0.00012541,2]
[399713933,1766632234442,-322.52072127,0.00012541,2]
[399713934,1766632234456,-345.38498168,0.00012541,2]
[399713935,1766632234581,-154.61501832,0.00012541,2]
[399713936,1766632234591,-262.72247446,0.00012542,2]
[399713937,1766632234616,-500.0,0.00012542,2]
[399713938,1766632234655,-430.05731615,0.00012542,2]
[399713939,1766632234675,-500.0,0.00012542,2]
[399713940,1766632234705,-6305.22038214,0.00012542,2]
[399713941,1766632235654,-10000.01,0.00012542,2]
[399713943,1766632237642,-387.81872437,0.00012542,2]
[399713944,1766632237750,-1684.83061879,0.00012542,2]
[399713945,1766632237805,-832659.00750436,0.00012542,2]
[399713946,1766632237815,-250.0,0.00012587,2]
[399713947,1766632237825,-387.86246658,0.00012617,2]
[399713948,1766632237835,-1597.77382672,0.00012632,2]
[399713949,1766632237845,-1200.0,0.0001264,2]
[399713950,1766632237856,-150.0,0.0001264,2]
[399713951,1766632237866,-300.0,0.0001264,2]
[399713952,1766632237876,-300.0,0.0001264,2]
[399713953,1766632237886,-1200.0,0.0001264,2]
[399713954,1766632237896,-42725.70553618,0.00012642,2]
[399713955,1766632237907,-53076.02120678,0.00012643,2]
[399713956,1766632237917,-32797.08247332,0.00012643,2]
[399713957,1766632237927,-493.1772721,0.00012643,2]
[399713958,1766632237941,-2500.0,0.00012643,2]
[399713959,1766632237950,-500.0,0.00012736,2]
[399713960,1766632237960,-151.0,0.00012736,2]
[399713961,1766632237970,-151.0,0.00012736,2]
[399713963,1766632237982,-252.50040685,0.00012736,2]
[399713965,1766632237992,-151.0,0.00012736,2]
[399713967,1766632238003,-200.0,0.00012736,2]
[399713968,1766632238014,-151.0,0.00012736,2]
[399713969,1766632238024,-151.0,0.00012736,2]
[399713970,1766632238034,-151.0,0.00012736,2]
[399713971,1766632238044,-151.0,0.00012736,2]
[399713972,1766632238055,-500.0,0.00012736,2]
[399713973,1766632238065,-151.0,0.00012736,2]
[399713974,1766632238075,-500.0,0.00012736,2]
[399713975,1766632238085,-151.0,0.00012736,2]
[399713976,1766632238095,-500.0,0.00012736,2]
[399713977,1766632238104,-151.0,0.00012736,2]
[399713978,1766632238114,-500.0,0.00012736,2]
[399713979,1766632238124,-200.0,0.00012736,2]
[399713980,1766632238134,-151.0,0.00012736,2]
[399713981,1766632238144,-500.0,0.00012736,2]
[399713982,1766632238154,-151.0,0.00012736,2]
[399713983,1766632238164,-500.0,0.00012736,2]
[399713984,1766632238174,-151.0,0.00012736,2]
[399713985,1766632238183,-500.0,0.00012736,2]
[399713986,1766632238194,-500.0,0.00012736,2]
[399713987,1766632238204,-500.0,0.00012736,2]
[399713988,1766632238213,-500.0,0.00012736,2]
[399713989,1766632238410,-500.0,0.00012736,2]
[399713990,1766632238472,-500.0,0.00012736,2]
[399713991,1766632238483,-500.0,0.00012736,2]
[399713992,1766632238492,-500.0,0.00012736,2]
[399713993,1766632238502,-500.0,0.00012736,2]
[399713994,1766632238512,-500.0,0.00012736,2]
[399713995,1766632238521,-500.0,0.00012736,2]
[399713996,1766632238531,-500.0,0.00012736,2]
[399713997,1766632238542,-500.0,0.00012736,2]
[399713998,1766632238551,-500.0,0.00012736,2]
[399713999,1766632238561,-500.0,0.00012736,2]
[399714000,1766632238570,-500.0,0.00012736,2]
[399714001,1766632238581,-1862.4,0.00012736,2]
[399714002,1766632238591,-166.66,0.00012737,2]
[399714003,1766632238600,-500.0,0.00012737,2]
[399714004,1766632238610,-329.7840414,0.00012739,2]
[399714005,1766632238620,-247.73026525,0.00012743,2]
[399714006,1766632238630,-726.55651361,0.00012743,2]
[399714007,1766632238640,-1000.0,0.00012743,2]
[399714008,1766632238650,-12722.458079,0.00012748,2]
[399714009,1766632238661,-443.83,0.00012782,2]
[399714010,1766632238671,-493.17727209,0.00012914,2]
[399714011,1766632238681,-1862.4,0.0001301,2]
[399714012,1766632238691,-500.0,0.00013011,2]
[399714013,1766632238701,-1000.0,0.00013023,2]
[399714014,1766632238711,-166.66,0.00013108,2]
[399714015,1766632238721,-1000.0,0.00013143,2]
[399714016,1766632238731,-166.66,0.00013158,2]
[399714017,1766632238740,-315.0,0.0001318,2]
[399714018,1766632238750,-493.17727209,0.00013184,2]
[399714019,1766632238760,-417.0,0.00013207,2]
[399714020,1766632238770,-1585.0,0.00013218,2]
[399714021,1766632238780,-150.0,0.0001323,2]
[399714022,1766632238789,-200.78240058,0.0001323,2]
[399714023,1766632238799,-292.80019267,0.00013233,2]
[399714024,1766632238809,-327344.34814624,0.0001324,2]
[399714025,1766632238819,-859.0,0.00013245,2]
[399714026,1766632238829,-686.0,0.00013271,2]
[399714027,1766632238838,-500.0,0.00013284,2]
[399714028,1766632238848,-200.0,0.00013284,2]
[399714029,1766632238858,-200.0,0.00013284,2]
[399714030,1766632238868,-1862.4,0.00013284,2]
[399714031,1766632238878,-500.0,0.00013285,2]
[399714032,1766632238889,-307.0,0.00013298,2]
[399714033,1766632238899,-501.0,0.00013365,2]
[399714034,1766632238910,-166.66,0.00013384,2]
[399714035,1766632238920,-929.0,0.00013391,2]
[399714036,1766632238931,-443.83,0.00013454,2]
[399714037,1766632238944,-323.0,0.00013472,2]
[399714038,1766632238954,-1157.0,0.00013499,2]
[399714039,1766632238965,-607.0,0.00013526,2]
[399714040,1766632238976,-1862.4,0.00013558,2]
[399714041,1766632238986,-500.0,0.00013559,2]
[399714042,1766632238996,-166.66,0.00013578,2]
[399714043,1766632239007,-279.21023116,0.00013598,2]
[399714044,1766632239017,-22974.69,0.00013659,2]
[399714045,1766632239027,-166.66,0.0001366,2]
[399714046,1766632239037,-500.0,0.00013698,2]
[399714047,1766632239048,-500.0,0.00013698,2]
[399714048,1766632239058,-500.0,0.00013698,2]
[399714049,1766632239068,-500.0,0.00013698,2]
[399714050,1766632239079,-500.0,0.00013698,2]
[399714051,1766632239089,-500.0,0.00013698,2]
[399714052,1766632239105,-500.0,0.00013698,2]
[399714053,1766632239118,-500.0,0.00013698,2]
[399714054,1766632239128,-500.0,0.00013698,2]
[399714055,1766632239144,-500.0,0.00013698,2]
[399714056,1766632239154,-500.0,0.00013698,2]
[399714057,1766632239164,-500.0,0.00013698,2]
[399714058,1766632239174,-500.0,0.00013698,2]
[399714059,1766632239183,-505.82761911,0.00013698,2]
[399714060,1766632239193,-500.0,0.00013698,2]
[399714061,1766632239203,-500.0,0.00013698,2]
[399714062,1766632239212,-500.0,0.00013698,2]
[399714063,1766632239223,-500.0,0.00013698,2]
[399714064,1766632239233,-500.0,0.00013698,2]
[399714065,1766632239242,-500.0,0.00013698,2]
[399714066,1766632239252,-500.0,0.00013698,2]
[399714067,1766632239262,-500.0,0.00013698,2]
[399714068,1766632239272,-500.0,0.00013698,2]
[399714069,1766632239282,-500.0,0.00013698,2]
[399714070,1766632239292,-500.0,0.00013698,2]
[399714071,1766632239302,-500.0,0.00013698,2]
[399714072,1766632239312,-500.0,0.00013698,2]
[399714073,1766632239322,-500.0,0.00013698,2]
[399714074,1766632239331,-500.0,0.00013698,2]
[399714075,1766632239342,-500.0,0.00013698,2]
[399714076,1766632239353,-500.0,0.00013698,2]
[399714077,1766632239363,-500.0,0.00013698,2]
[399714078,1766632239372,-500.0,0.00013698,2]
[399714079,1766632239382,-500.0,0.00013698,2]
[399714080,1766632239392,-500.0,0.00013698,2]
[399714081,1766632239402,-500.61215615,0.00013698,2]
[399714082,1766632239411,-500.0,0.00013698,2]
[399714083,1766632239421,-500.0,0.00013698,2]
[399714084,1766632239431,-500.0,0.00013698,2]
[399714085,1766632239441,-500.0,0.00013698,2]
[399714086,1766632239451,-500.0,0.00013698,2]
[399714087,1766632239461,-500.0,0.00013698,2]
[399714088,1766632239471,-500.0,0.00013698,2]
[399714089,1766632239481,-500.0,0.00013698,2]
[399714090,1766632239491,-500.0,0.00013698,2]
[399714091,1766632239501,-500.0,0.00013698,2]
[399714092,1766632239510,-500.0,0.00013698,2]
[399714093,1766632239520,-500.0,0.00013698,2]
[399714094,1766632239530,-500.0,0.00013698,2]
[399714095,1766632239540,-500.0,0.00013698,2]
[399714096,1766632239549,-500.0,0.00013698,2]
[399714097,1766632239559,-500.0,0.00013698,2]
[399714098,1766632239569,-500.0,0.00013698,2]
[399714099,1766632239579,-284.02576832,0.00013698,2]
[399714100,1766632239590,-500.0,0.00013698,2]
[399714101,1766632239600,-500.0,0.00013698,2]
[399714102,1766632239610,-500.0,0.00013698,2]
[399714103,1766632239620,-500.0,0.00013698,2]
[399714104,1766632239630,-500.0,0.00013698,2]
[399714105,1766632239640,-500.0,0.00013698,2]
[399714106,1766632239650,-500.0,0.00013698,2]
[399714107,1766632239660,-500.0,0.00013698,2]
[399714108,1766632239670,-500.0,0.00013698,2]
[399714109,1766632239680,-500.0,0.00013698,2]
[399714110,1766632239690,-500.0,0.00013698,2]
[399714111,1766632239699,-500.0,0.00013698,2]
[399714112,1766632239709,-309.57082373,0.00013698,2]
[399714114,1766632239719,-500.0,0.00013698,2]
[399714116,1766632239729,-500.0,0.00013698,2]
[399714117,1766632239739,-500.0,0.00013698,2]
[399714118,1766632239748,-500.0,0.00013698,2]
[399714119,1766632239758,-500.0,0.00013698,2]
[399714120,1766632239768,-510.60428211,0.00013698,2]
[399714121,1766632239777,-400.99816969,0.00013698,2]
[399714122,1766632239787,-500.0,0.00013698,2]
[399714123,1766632239797,-506.80328525,0.00013698,2]
[399714124,1766632239807,-500.0,0.00013698,2]
[399714125,1766632239816,-500.0,0.00013698,2]
[399714126,1766632239827,-500.0,0.00013698,2]
[399714127,1766632239836,-500.0,0.00013698,2]
[399714128,1766632239846,-501.405217,0.00013698,2]
[399714129,1766632239856,-500.0,0.00013698,2]
[399714130,1766632239866,-500.0,0.00013698,2]
[399714131,1766632239876,-500.0,0.00013698,2]
[399714132,1766632239886,-500.0,0.00013698,2]
[399714133,1766632239897,-500.0,0.00013698,2]
[399714134,1766632239907,-602.90869364,0.00013698,2]
[399714135,1766632239917,-500.0,0.00013698,2]
[399714136,1766632239927,-500.0,0.00013698,2]
[399714137,1766632239951,-500.0,0.00013698,2]
[399714138,1766632239964,-500.0,0.00013698,2]
[399714139,1766632239975,-500.0,0.00013698,2]
[399714140,1766632239986,-500.0,0.00013698,2]
[399714141,1766632239995,-500.0,0.00013698,2]
[399714142,1766632240006,-500.0,0.00013698,2]
[399714143,1766632240016,-681.92,0.00013698,2]
[399714144,1766632240026,-681.92,0.00013698,2]
[399714145,1766632240036,-681.92,0.00013698,2]
[399714146,1766632240046,-681.92,0.00013698,2]
[399714147,1766632240057,-500.0,0.00013698,2]
[399714148,1766632240067,-500.0,0.00013698,2]
[399714149,1766632240078,-177.33477516,0.00013698,2]
[399714150,1766632240087,-523.3228728,0.00013698,2]
[399714151,1766632240098,-500.0,0.00013698,2]
[399714152,1766632240108,-500.0,0.00013698,2]
[399714153,1766632240118,-500.0,0.00013698,2]
[399714154,1766632240128,-500.0,0.00013698,2]
[399714155,1766632240138,-500.0,0.00013698,2]
[399714156,1766632240149,-500.0,0.00013698,2]
[399714157,1766632240159,-524.26514358,0.00013698,2]
[399714158,1766632240169,-500.0,0.00013698,2]
[399714159,1766632240179,-500.93767217,0.00013698,2]
[399714160,1766632240190,-1000.0,0.00013699,2]
[399714161,1766632240200,-613.33,0.00013699,2]
[399714162,1766632240210,-500.0,0.00013699,2]
[399714163,1766632240221,-500.0,0.00013699,2]
[399714164,1766632240232,-500.0,0.00013699,2]
[399714165,1766632240242,-500.0,0.00013699,2]
[399714166,1766632240253,-500.0,0.00013699,2]
[399714167,1766632240263,-500.0,0.00013699,2]
[399714168,1766632240273,-500.0,0.00013699,2]
[399714169,1766632240284,-500.0,0.00013699,2]
[399714170,1766632240295,-500.0,0.00013699,2]
[399714171,1766632240310,-500.0,0.00013699,2]
[399714172,1766632240320,-500.0,0.00013699,2]
[399714173,1766632240330,-546.21776684,0.00013699,2]
[399714174,1766632240340,-500.0,0.00013699,2]
[399714175,1766632240351,-500.0,0.00013699,2]
[399714176,1766632240360,-500.0,0.00013699,2]
[399714177,1766632240371,-500.0,0.00013699,2]
[399714178,1766632240381,-500.0,0.00013699,2]
[399714179,1766632240391,-500.0,0.00013699,2]
[399714180,1766632240401,-500.0,0.00013699,2]
[399714182,1766632240411,-255.0,0.0001374,2]
[399714184,1766632240421,-600.0,0.00013741,2]
[399714185,1766632240431,-351.76,0.00013741,2]
[399714186,1766632240442,-600.0,0.00013796,2]
[399714187,1766632240453,-600.0,0.00013796,2]
[399714188,1766632240463,-600.0,0.00013796,2]
[399714189,1766632240474,-600.0,0.00013796,2]
[399714190,1766632240484,-600.0,0.00013796,2]
[399714191,1766632240495,-250.0,0.00013796,2]
[399714192,1766632240505,-300.0,0.00013796,2]
[399714193,1766632240516,-500.0,0.00013832,2]
[399714194,1766632240526,-200.0,0.00013832,2]
[399714195,1766632240536,-200.0,0.00013832,2]
[399714196,1766632240546,-1862.4,0.00013832,2]
[399714197,1766632240556,-500.0,0.00013833,2]
[399714198,1766632240567,-2800.41473301,0.00013841,2]
[399714199,1766632240577,-1680.0,0.00013867,2]
[399714200,1766632240587,-420.0,0.00013867,2]
[399714201,1766632240598,-420.0,0.00013867,2]
[399714202,1766632240608,-207.4920134,0.00013895,2]
[399714203,1766632240617,-195.0,0.00013895,2]
[399714204,1766632240627,-195.0,0.00013895,2]
[399714205,1766632240638,-300.0,0.00013895,2]
[399714206,1766632240648,-195.0,0.00013895,2]
[399714207,1766632240659,-300.0,0.00013895,2]
[399714208,1766632240675,-300.0,0.00013895,2]
[399714209,1766632240685,-300.0,0.00013895,2]
[399714210,1766632240696,-300.0,0.00013895,2]
[399714211,1766632240707,-300.0,0.00013895,2]
[399714212,1766632240716,-300.0,0.00013895,2]
[399714213,1766632240726,-195.0,0.00013895,2]
[399714214,1766632240741,-1680.0,0.00013904,2]
[399714215,1766632240760,-384.09,0.00013926,2]
[399714216,1766632240770,-166.66,0.00013936,2]
[399714217,1766632240781,-487.16,0.00013992,2]
[399714218,1766632240791,-500.0,0.00013993,2]
[399714219,1766632240801,-500.0,0.00013993,2]
[399714220,1766632240811,-166.66,0.00013999,2]
[399714221,1766632240821,-4746.66730048,0.00014017,2]
[399714222,1766632240830,-1862.4,0.00014105,2]
[399714223,1766632240840,-500.0,0.00014107,2]
[399714224,1766632240850,-443.83,0.00014127,2]
[399714225,1766632240861,-166.66,0.00014211,2]
[399714226,1766632240871,-3154.34935215,0.00014213,2]
[399714227,1766632240881,-5000.0,0.00014233,2]
[399714228,1766632240891,-329.7840414,0.00014277,2]
[399714229,1766632240901,-1862.4,0.00014379,2]
[399714230,1766632240911,-500.0,0.0001438,2]
[399714231,1766632240921,-200.0,0.0001438,2]
[399714232,1766632240934,-200.0,0.0001438,2]
[399714233,1766632240945,-222.61399504,0.00014381,2]
[399714234,1766632240955,-166.66,0.00014419,2]
[399714235,1766632240965,-166.66,0.00014487,2]
[399714236,1766632240975,-10000.0,0.0001451,2]
[399714237,1766632240985,-1862.4,0.00014653,2]
[399714238,1766632240995,-151.0,0.00014764,2]
[399714239,1766632241005,-151.0,0.00014769,2]
[399714240,1766632241016,-151.0,0.00014774,2]
[399714241,1766632241026,-443.83,0.000148,2]
[399714242,1766632241042,-166.66,0.0001484,2]
[399714243,1766632241053,-1862.4,0.00014927,2]
[399714244,1766632241063,-500.0,0.00014928,2]
[399714245,1766632241072,-200.0,0.00014928,2]
[399714246,1766632241083,-200.0,0.00014928,2]
[399714247,1766632241093,-433.0,0.0001494,2]
[399714248,1766632241103,-12722.458079,0.00014991,2]
[399714249,1766632241113,-1862.4,0.00015201,2]
[399714250,1766632241124,-500.0,0.00015206,2]
[399714251,1766632241135,-500.0,0.00015206,2]
[399714252,1766632241145,-2351.0,0.00015213,2]
[399714253,1766632241155,-356.0,0.00015213,2]
[399714254,1766632241165,-587.0,0.00015213,2]
[399714255,1766632241175,-2351.0,0.00015294,2]
[399714256,1766632241186,-567.09,0.0001531,2]
[399714257,1766632241197,-7711.25,0.0001531,2]
[399714258,1766632241207,-309.16,0.0001531,2]
[399714259,1766632241217,-999.99,0.0001531,2]
[399714260,1766632241227,-150.99,0.0001531,2]
[399714261,1766632241237,-150.99,0.0001531,2]
[399714262,1766632241247,-499.99,0.0001531,2]
[399714263,1766632241257,-299.99,0.0001531,2]
[399714264,1766632241267,-406.16,0.0001531,2]
[399714265,1766632241278,-8243.68,0.0001531,2]
[399714266,1766632241289,-9999.99,0.0001531,2]
[399714267,1766632241299,-9999.99,0.0001531,2]
[399714268,1766632241309,-9999.99,0.0001531,2]
[399714269,1766632241318,-5167.62,0.0001531,2]
[399714270,1766632241329,-9999.99,0.0001531,2]
[399714271,1766632241339,-23338.72,0.0001531,2]
[399714272,1766632241350,-5431.02,0.0001531,2]
[399714273,1766632241359,-9632.43,0.0001531,2]
[399714274,1766632241369,-500.0,0.00015415,2]
[399714275,1766632241379,-443.83,0.00015472,2]
[399714276,1766632241391,-1862.4,0.00015475,2]
[399714277,1766632241406,-500.0,0.00015476,2]
[399714278,1766632241416,-200.0,0.00015476,2]
[399714279,1766632241427,-200.0,0.00015476,2]
[399714280,1766632241437,-151.0,0.00015558,2]
[399714281,1766632241447,-53076.02120669,0.0001556,2]
[399714282,1766632241458,-32797.08247324,0.0001556,2]
[399714283,1766632241469,-250.0,0.00015641,2]
[399714284,1766632241479,-200.17243952,0.00015715,2]
[399714285,1766632241489,-1862.4,0.00015749,2]
[399714286,1766632241499,-329.7840414,0.00015815,2]
[399714287,1766632241510,-1862.4,0.00016023,2]
[399714288,1766632241520,-500.0,0.00016024,2]
[399714289,1766632241531,-200.0,0.00016024,2]
[399714290,1766632241541,-200.0,0.00016024,2]
[399714291,1766632241551,-443.83,0.00016145,2]
[399714292,1766632241561,-736.0,0.0001623,2]
[399714293,1766632241572,-1862.4,0.00016297,2]
[399714294,1766632241583,-228.0,0.000164,2]
[399714295,1766632241593,-319.0,0.000164,2]
[399714296,1766632241603,-182.0,0.000164,2]
[399714297,1766632241614,-184.24951816,0.000164,2]
[399714298,1766632241625,-500.0,0.00016437,2]
[399714299,1766632241635,-500.0,0.00016437,2]
[399714300,1766632241645,-1235.51101632,0.00016438,2]
[399714301,1766632241656,-1235.51101632,0.00016438,2]
[399714302,1766632241667,-1235.51101632,0.00016438,2]
[399714303,1766632241677,-1235.51101632,0.00016438,2]
[399714304,1766632241687,-1235.51101632,0.00016438,2]
[399714305,1766632241697,-1235.51101632,0.00016438,2]
[399714306,1766632241707,-1235.51101632,0.00016438,2]
[399714307,1766632241719,-1235.51101632,0.00016438,2]
[399714308,1766632241729,-1235.51101632,0.00016438,2]
[399714309,1766632241739,-1235.51101632,0.00016438,2]
[399714310,1766632241749,-1235.51101632,0.00016438,2]
[399714311,1766632241763,-1235.51101632,0.00016438,2]
[399714312,1766632241773,-1235.51101632,0.00016438,2]
[399714313,1766632241783,-1235.51101632,0.00016438,2]
[399714314,1766632241794,-1235.51101632,0.00016438,2]
[399714315,1766632241804,-1235.51101632,0.00016438,2]
[399714316,1766632241813,-1235.51101632,0.00016438,2]
[399714317,1766632241824,-1235.51101632,0.00016438,2]
[399714318,1766632241834,-1235.51101632,0.00016438,2]
[399714319,1766632241844,-1235.51101632,0.00016438,2]
[399714320,1766632241854,-1235.51101632,0.00016438,2]
[399714321,1766632241864,-1235.51101632,0.00016438,2]
[399714322,1766632241875,-1235.51101632,0.00016438,2]
[399714323,1766632241884,-1235.51101632,0.00016438,2]
[399714324,1766632241894,-1235.51101632,0.00016438,2]
[399714325,1766632241904,-1235.51101632,0.00016438,2]
[399714326,1766632241914,-1235.51101632,0.00016438,2]
[399714327,1766632241923,-1235.51101632,0.00016438,2]
[399714328,1766632241937,-1235.51101632,0.00016438,2]
[399714329,1766632241948,-1235.51101632,0.00016438,2]
[399714330,1766632241961,-1235.51101632,0.00016438,2]
[399714331,1766632241971,-1235.51101632,0.00016438,2]
[399714332,1766632241982,-1235.51101632,0.00016438,2]
[399714333,1766632241992,-1235.51101632,0.00016438,2]
[399714334,1766632242004,-1235.51101632,0.00016438,2]
[399714335,1766632242014,-1235.51101632,0.00016438,2]
[399714336,1766632242023,-1235.51101632,0.00016438,2]
[399714337,1766632242034,-1235.51101632,0.00016438,2]
[399714338,1766632242044,-1235.51101632,0.00016438,2]
[399714339,1766632242054,-1235.51101632,0.00016438,2]
[399714340,1766632242064,-1235.51101632,0.00016438,2]
[399714341,1766632242075,-1235.51101632,0.00016438,2]
[399714342,1766632242086,-1235.51101632,0.00016438,2]
[399714343,1766632242096,-1235.51101632,0.00016438,2]
[399714344,1766632242106,-1235.51101632,0.00016438,2]
[399714345,1766632242116,-1235.51101632,0.00016438,2]